[Event "Titled Tuesday Blitz February 21 Early 2023"]
[White "Maltsevskaya, Aleksandra"]
[Black "Yuan, Qingyu"]
[WhiteFideId "24174041"]
[BlackFideId "8609772"]
[WhiteElo "2390"]
[BlackElo "2373"]
[Result "1-0"]
[Round "05"]
[TimeControl "180+2"]
[Date "2023.02.21"]
[WhiteClock "0:02:00"]
[BlackClock "0:00:35"]

1. e4 {[%clk 0:03:00]}  e5 {[%clk 0:02:57]} 2. Nf3 {[%clk 0:02:58]}  Nc6 {[%clk 0:02:58]} 3. Bb5 {[%clk 0:02:57]}  Nf6 {[%clk 0:02:58]} 4. d3 {[%clk 0:02:55]}  Bc5 {[%clk 0:02:58]} 5. O-O {[%clk 0:02:55]}  Nd4 {[%clk 0:02:57]} 6. Nxd4 {[%clk 0:02:55]}  Bxd4 {[%clk 0:02:58]} 7. c3 {[%clk 0:02:55]}  Bb6 {[%clk 0:02:58]} 8. Bg5 {[%clk 0:02:56]}  h6 {[%clk 0:02:53]} 9. Bh4 {[%clk 0:02:55]}  O-O {[%clk 0:02:51]} 10. Nd2 {[%clk 0:02:52]}  c6 {[%clk 0:02:40]} 11. Ba4 {[%clk 0:02:52]}  d6 {[%clk 0:02:35]} 12. Kh1 {[%clk 0:02:50]}  g5 {[%clk 0:02:27]} 13. Bg3 {[%clk 0:02:50]}  Be6 {[%clk 0:02:20]} 14. Bb3 {[%clk 0:02:49]}  Qe7 {[%clk 0:02:17]} 15. Nc4 {[%clk 0:02:47]}  Bc7 {[%clk 0:02:15]} 16. Ne3 {[%clk 0:02:47]}  Rad8 {[%clk 0:02:11]} 17. f3 {[%clk 0:02:46]}  d5 {[%clk 0:02:11]} 18. Qe2 {[%clk 0:02:39]}  Nh5 {[%clk 0:01:58]} 19. Rae1 {[%clk 0:02:37]}  Nf4 {[%clk 0:01:53]} 20. Bxf4 {[%clk 0:02:37]}  gxf4 {[%clk 0:01:44]} 21. exd5 {[%clk 0:02:31]}  cxd5 {[%clk 0:01:42]} 22. Ng4 {[%clk 0:02:32]}  Bxg4 {[%clk 0:01:37]} 23. fxg4 {[%clk 0:02:32]}  Qg5 {[%clk 0:01:30]} 24. Qf3 {[%clk 0:02:30]}  Bb6 {[%clk 0:01:03]} 25. Bxd5 {[%clk 0:02:27]}  Be3 {[%clk 0:01:03]} 26. Be4 {[%clk 0:02:25]}  b6 {[%clk 0:01:03]} 27. h3 {[%clk 0:02:20]}  Kg7 {[%clk 0:01:03]} 28. Re2 {[%clk 0:02:12]}  Rd6 {[%clk 0:01:03]} 29. Bf5 {[%clk 0:02:12]}  Rfd8 {[%clk 0:01:01]} 30. Be4 {[%clk 0:02:11]}  a5 {[%clk 0:00:59]} 31. Rxe3 {[%clk 0:02:11]}  a4 {[%clk 0:00:44]} 32. Ree1 {[%clk 0:02:10]}  Rc8 {[%clk 0:00:40]} 33. Bf5 {[%clk 0:02:10]}  Rc5 {[%clk 0:00:40]} 34. Rf2 {[%clk 0:02:04]}  a3 {[%clk 0:00:40]} 35. bxa3 {[%clk 0:02:03]}  Rxc3 {[%clk 0:00:40]} 36. Rxe5 {[%clk 0:02:02]}  Rcxd3 {[%clk 0:00:38]} 37. Qxf4 {[%clk 0:02:00]}  Qh4 {[%clk 0:00:35]} 38. Bxd3 {[%clk 0:02:00]} 1-0


[Site "https://www.chess.com"]

[Event "Titled Tuesday Blitz February 21 Early 2023"]
[White "Boros, Denes"]
[Black "Di Nicolantonio, Lucas"]
[WhiteFideId "722340"]
[BlackFideId "680460"]
[WhiteElo "2406"]
[BlackElo "2376"]
[Result "1-0"]
[Round "05"]
[TimeControl "180+2"]
[Date "2023.02.21"]
[WhiteClock "0:01:05"]
[BlackClock "0:00:13"]

1. d4 {[%clk 0:03:00]}  g6 {[%clk 0:02:58]} 2. e4 {[%clk 0:02:59]}  Bg7 {[%clk 0:02:58]} 3. Nf3 {[%clk 0:02:57]}  d6 {[%clk 0:02:59]} 4. Bg5 {[%clk 0:02:56]}  a6 {[%clk 0:02:58]} 5. c4 {[%clk 0:02:54]}  h6 {[%clk 0:02:55]} 6. Be3 {[%clk 0:02:54]}  c6 {[%clk 0:02:52]} 7. Nc3 {[%clk 0:02:52]}  b5 {[%clk 0:02:48]} 8. a3 {[%clk 0:02:51]}  Nd7 {[%clk 0:02:45]} 9. h3 {[%clk 0:02:44]}  Ngf6 {[%clk 0:02:44]} 10. e5 {[%clk 0:02:39]}  Nh7 {[%clk 0:02:25]} 11. e6 {[%clk 0:02:34]}  fxe6 {[%clk 0:02:24]} 12. Bd3 {[%clk 0:02:33]}  O-O {[%clk 0:02:18]} 13. cxb5 {[%clk 0:02:09]}  axb5 {[%clk 0:02:18]} 14. Bxg6 {[%clk 0:02:10]}  b4 {[%clk 0:02:02]} 15. axb4 {[%clk 0:02:06]}  Rxa1 {[%clk 0:02:03]} 16. Qxa1 {[%clk 0:02:05]}  Qb6 {[%clk 0:02:04]} 17. b5 {[%clk 0:01:54]}  cxb5 {[%clk 0:01:56]} 18. O-O {[%clk 0:01:54]}  Bb7 {[%clk 0:01:45]} 19. d5 {[%clk 0:01:44]}  Qd8 {[%clk 0:01:03]} 20. Nd4 {[%clk 0:01:36]}  Bxd4 {[%clk 0:00:55]} 21. Bxd4 {[%clk 0:01:36]}  e5 {[%clk 0:00:56]} 22. Be3 {[%clk 0:01:34]}  b4 {[%clk 0:00:57]} 23. Ne4 {[%clk 0:01:25]}  Bxd5 {[%clk 0:00:56]} 24. Qd1 {[%clk 0:01:25]}  Be6 {[%clk 0:00:16]} 25. Bxh6 {[%clk 0:01:15]}  Kh8 {[%clk 0:00:13]} 26. Bxf8 {[%clk 0:01:08]}  Qxf8 {[%clk 0:00:13]} 27. Qh5 {[%clk 0:01:07]}  Qg7 {[%clk 0:00:12]} 28. Qxh7+ {[%clk 0:01:04]}  Qxh7 {[%clk 0:00:13]} 29. Bxh7 {[%clk 0:01:05]}  Kxh7 {[%clk 0:00:13]} 30. Ng5+ {[%clk 0:01:05]} 1-0


[Site "https://www.chess.com"]

[Event "Titled Tuesday Blitz February 21 Early 2023"]
[White "Padmini, Rout"]
[Black "Rustemov, Alexander"]
[WhiteFideId "5029295"]
[BlackFideId "4119002"]
[WhiteElo "2375"]
[BlackElo "2525"]
[Result "0-1"]
[Round "05"]
[TimeControl "180+2"]
[Date "2023.02.21"]
[WhiteClock "0:00:15"]
[BlackClock "0:01:12"]

1. e4 {[%clk 0:03:00]}  e6 {[%clk 0:02:56]} 2. d4 {[%clk 0:03:00]}  d5 {[%clk 0:02:54]} 3. Nd2 {[%clk 0:02:55]}  dxe4 {[%clk 0:02:54]} 4. Nxe4 {[%clk 0:02:56]}  Bd7 {[%clk 0:02:55]} 5. Nf3 {[%clk 0:02:54]}  Bc6 {[%clk 0:02:55]} 6. Ng3 {[%clk 0:02:50]}  Nd7 {[%clk 0:02:55]} 7. Bd3 {[%clk 0:02:49]}  Ngf6 {[%clk 0:02:56]} 8. O-O {[%clk 0:02:47]}  Be7 {[%clk 0:02:56]} 9. Ne5 {[%clk 0:02:42]}  Nxe5 {[%clk 0:02:55]} 10. dxe5 {[%clk 0:02:42]}  Qd5 {[%clk 0:02:55]} 11. f3 {[%clk 0:02:03]}  Qxe5 {[%clk 0:02:53]} 12. Ne4 {[%clk 0:02:00]}  Nxe4 {[%clk 0:02:47]} 13. fxe4 {[%clk 0:01:59]}  Bd6 {[%clk 0:02:42]} 14. Bf4 {[%clk 0:01:59]}  Qxb2 {[%clk 0:02:27]} 15. Kh1 {[%clk 0:01:17]}  Bxf4 {[%clk 0:02:21]} 16. Rxf4 {[%clk 0:01:18]}  Qe5 {[%clk 0:02:19]} 17. Qf1 {[%clk 0:01:03]}  O-O {[%clk 0:02:17]} 18. Re1 {[%clk 0:00:56]}  f6 {[%clk 0:02:06]} 19. Bc4 {[%clk 0:00:46]}  g6 {[%clk 0:02:01]} 20. Qf3 {[%clk 0:00:32]}  Kg7 {[%clk 0:02:01]} 21. Rf1 {[%clk 0:00:31]}  Rad8 {[%clk 0:01:53]} 22. Qg4 {[%clk 0:00:30]}  f5 {[%clk 0:01:43]} 23. exf5 {[%clk 0:00:29]}  exf5 {[%clk 0:01:42]} 24. Qg3 {[%clk 0:00:28]}  Rd2 {[%clk 0:01:31]} 25. R4f2 {[%clk 0:00:25]}  Qxg3 {[%clk 0:01:31]} 26. hxg3 {[%clk 0:00:25]}  Rfd8 {[%clk 0:01:28]} 27. Bd3 {[%clk 0:00:24]}  Rxf2 {[%clk 0:01:27]} 28. Rxf2 {[%clk 0:00:25]}  h5 {[%clk 0:01:25]} 29. Kh2 {[%clk 0:00:25]}  Kf6 {[%clk 0:01:24]} 30. Kg1 {[%clk 0:00:24]}  Rd4 {[%clk 0:01:22]} 31. Re2 {[%clk 0:00:22]}  Be4 {[%clk 0:01:21]} 32. Bxe4 {[%clk 0:00:20]}  Rxe4 {[%clk 0:01:21]} 33. Rd2 {[%clk 0:00:21]}  Ke6 {[%clk 0:01:19]} 34. Kf2 {[%clk 0:00:21]}  Ra4 {[%clk 0:01:19]} 35. Re2+ {[%clk 0:00:21]}  Kf6 {[%clk 0:01:18]} 36. c3 {[%clk 0:00:21]}  Ra3 {[%clk 0:01:17]} 37. Rc2 {[%clk 0:00:21]}  Ke5 {[%clk 0:01:16]} 38. Ke3 {[%clk 0:00:19]}  c5 {[%clk 0:01:16]} 39. Kd3 {[%clk 0:00:20]}  b5 {[%clk 0:01:16]} 40. Re2+ {[%clk 0:00:20]}  Kd5 {[%clk 0:01:16]} 41. Re8 {[%clk 0:00:20]}  b4 {[%clk 0:01:14]} 42. Rd8+ {[%clk 0:00:18]}  Ke6 {[%clk 0:01:14]} 43. Re8+ {[%clk 0:00:17]}  Kf6 {[%clk 0:01:12]} 44. Rb8 {[%clk 0:00:16]}  Rxc3+ {[%clk 0:01:12]} 45. Kd2 {[%clk 0:00:15]}  Rxg3 {[%clk 0:01:12]} 0-1


[Site "https://www.chess.com"]

[Event "Titled Tuesday Blitz February 21 Early 2023"]
[White "Alinasab, Mobina"]
[Black "Galchenko, Matvey"]
[WhiteFideId "12528897"]
[BlackFideId "24175480"]
[WhiteElo "2347"]
[BlackElo "2438"]
[Result "0-1"]
[Round "05"]
[TimeControl "180+2"]
[Date "2023.02.21"]
[WhiteClock "0:00:03"]
[BlackClock "0:00:26"]

1. Nf3 {[%clk 0:02:59]}  d5 {[%clk 0:02:58]} 2. g3 {[%clk 0:02:59]}  Nf6 {[%clk 0:02:55]} 3. Bg2 {[%clk 0:02:57]}  c5 {[%clk 0:02:55]} 4. d4 {[%clk 0:02:57]}  cxd4 {[%clk 0:02:52]} 5. O-O {[%clk 0:02:54]}  h6 {[%clk 0:02:39]} 6. b3 {[%clk 0:02:54]}  e6 {[%clk 0:02:31]} 7. Nxd4 {[%clk 0:02:50]}  e5 {[%clk 0:02:32]} 8. Nf3 {[%clk 0:02:46]}  Nc6 {[%clk 0:02:20]} 9. Bb2 {[%clk 0:02:44]}  Bd6 {[%clk 0:02:20]} 10. Nbd2 {[%clk 0:02:24]}  O-O {[%clk 0:02:19]} 11. c4 {[%clk 0:02:23]}  d4 {[%clk 0:02:19]} 12. Rc1 {[%clk 0:02:07]}  Qe7 {[%clk 0:02:19]} 13. Re1 {[%clk 0:02:03]}  Bc5 {[%clk 0:02:08]} 14. e4 {[%clk 0:01:30]}  dxe3 {[%clk 0:02:05]} 15. fxe3 {[%clk 0:01:31]}  Bf5 {[%clk 0:01:56]} 16. Nh4 {[%clk 0:00:57]}  Bh7 {[%clk 0:01:54]} 17. Qf3 {[%clk 0:00:51]}  Rad8 {[%clk 0:01:43]} 18. Rcd1 {[%clk 0:00:51]}  Bc2 {[%clk 0:01:32]} 19. Nf5 {[%clk 0:00:37]}  Qe6 {[%clk 0:01:32]} 20. Bh3 {[%clk 0:00:33]}  Bxd1 {[%clk 0:00:59]} 21. Rxd1 {[%clk 0:00:34]}  Nh7 {[%clk 0:00:59]} 22. Ne4 {[%clk 0:00:24]}  Rxd1+ {[%clk 0:00:53]} 23. Qxd1 {[%clk 0:00:25]}  Bxe3+ {[%clk 0:00:52]} 24. Kg2 {[%clk 0:00:24]}  Bb6 {[%clk 0:00:45]} 25. Qg4 {[%clk 0:00:17]}  Qg6 {[%clk 0:00:41]} 26. Qf3 {[%clk 0:00:12]}  Ng5 {[%clk 0:00:37]} 27. Nxg5 {[%clk 0:00:07]}  Qxg5 {[%clk 0:00:38]} 28. Bc3 {[%clk 0:00:06]}  Rd8 {[%clk 0:00:35]} 29. Qe2 {[%clk 0:00:04]}  Nd4 {[%clk 0:00:31]} 30. Bxd4 {[%clk 0:00:04]}  exd4 {[%clk 0:00:32]} 31. Qd3 {[%clk 0:00:04]}  Qf6 {[%clk 0:00:30]} 32. Nh4 {[%clk 0:00:02]}  Qe5 {[%clk 0:00:28]} 33. Nf3 {[%clk 0:00:02]}  Qe3 {[%clk 0:00:29]} 34. Qf5 {[%clk 0:00:02]}  d3 {[%clk 0:00:27]} 35. Ne5 {[%clk 0:00:03]}  Qg1+ {[%clk 0:00:26]} 36. Kf3 {[%clk 0:00:03]}  Qf2+ {[%clk 0:00:26]} 0-1


[Site "https://www.chess.com"]

[Event "Titled Tuesday Blitz February 21 Early 2023"]
[White "Rottenwohrer Suarez, Juan"]
[Black "Pichot, Alan"]
[WhiteFideId "32068182"]
[BlackFideId "110973"]
[WhiteElo "2265"]
[BlackElo "2638"]
[Result "0-1"]
[Round "05"]
[TimeControl "180+2"]
[Date "2023.02.21"]
[WhiteClock "0:00:02"]
[BlackClock "0:00:38"]

1. Nf3 {[%clk 0:02:55]}  g6 {[%clk 0:02:58]} 2. g3 {[%clk 0:02:55]}  Bg7 {[%clk 0:02:58]} 3. Bg2 {[%clk 0:02:56]}  Nf6 {[%clk 0:02:58]} 4. O-O {[%clk 0:02:57]}  O-O {[%clk 0:02:59]} 5. c4 {[%clk 0:02:57]}  d6 {[%clk 0:03:00]} 6. d4 {[%clk 0:02:57]}  Nc6 {[%clk 0:03:00]} 7. Nc3 {[%clk 0:02:58]}  a6 {[%clk 0:03:00]} 8. Re1 {[%clk 0:02:55]}  Bg4 {[%clk 0:02:56]} 9. Rb1 {[%clk 0:02:37]}  Nd7 {[%clk 0:02:54]} 10. Be3 {[%clk 0:02:23]}  e5 {[%clk 0:02:52]} 11. dxe5 {[%clk 0:02:23]}  dxe5 {[%clk 0:02:52]} 12. b3 {[%clk 0:02:06]}  h6 {[%clk 0:02:42]} 13. Qd2 {[%clk 0:01:59]}  Kh7 {[%clk 0:02:43]} 14. Rbd1 {[%clk 0:01:57]}  Be6 {[%clk 0:02:43]} 15. Ne4 {[%clk 0:01:40]}  f6 {[%clk 0:02:33]} 16. h4 {[%clk 0:01:30]}  Qe7 {[%clk 0:02:31]} 17. Nc3 {[%clk 0:01:14]}  Rad8 {[%clk 0:02:27]} 18. Nd5 {[%clk 0:01:15]}  Bxd5 {[%clk 0:02:17]} 19. cxd5 {[%clk 0:01:12]}  Nb6 {[%clk 0:02:18]} 20. h5 {[%clk 0:01:00]}  Nxd5 {[%clk 0:02:12]} 21. hxg6+ {[%clk 0:01:01]}  Kg8 {[%clk 0:02:03]} 22. Nh4 {[%clk 0:00:59]}  Nxe3 {[%clk 0:01:58]} 23. Qxe3 {[%clk 0:00:58]}  f5 {[%clk 0:01:44]} 24. Rxd8 {[%clk 0:00:56]}  Nxd8 {[%clk 0:01:40]} 25. Rd1 {[%clk 0:00:55]}  c6 {[%clk 0:01:38]} 26. Qb6 {[%clk 0:00:53]}  Ne6 {[%clk 0:01:37]} 27. Bh3 {[%clk 0:00:47]}  f4 {[%clk 0:01:22]} 28. Qa5 {[%clk 0:00:28]}  fxg3 {[%clk 0:01:20]} 29. fxg3 {[%clk 0:00:28]}  Nd4 {[%clk 0:01:19]} 30. e3 {[%clk 0:00:21]}  Qg5 {[%clk 0:01:16]} 31. Qe1 {[%clk 0:00:19]}  Nc2 {[%clk 0:01:14]} 32. Qe2 {[%clk 0:00:17]}  Qxg3+ {[%clk 0:01:13]} 33. Ng2 {[%clk 0:00:14]}  Qxh3 {[%clk 0:00:53]} 34. Qxc2 {[%clk 0:00:14]}  Qg4 {[%clk 0:00:54]} 35. Rf1 {[%clk 0:00:13]}  Rd8 {[%clk 0:00:45]} 36. Qc4+ {[%clk 0:00:09]}  Qxc4 {[%clk 0:00:44]} 37. bxc4 {[%clk 0:00:10]}  Rd6 {[%clk 0:00:39]} 38. Rf7 {[%clk 0:00:10]}  b5 {[%clk 0:00:39]} 39. cxb5 {[%clk 0:00:07]}  cxb5 {[%clk 0:00:40]} 40. Nh4 {[%clk 0:00:07]}  Rxg6+ {[%clk 0:00:40]} 41. Nxg6 {[%clk 0:00:08]}  Kxf7 {[%clk 0:00:41]} 42. Nh4 {[%clk 0:00:06]}  b4 {[%clk 0:00:41]} 43. Kf2 {[%clk 0:00:06]}  Ke6 {[%clk 0:00:37]} 44. Ke2 {[%clk 0:00:06]}  Kd5 {[%clk 0:00:37]} 45. Kd3 {[%clk 0:00:07]}  e4+ {[%clk 0:00:37]} 46. Kc2 {[%clk 0:00:07]}  h5 {[%clk 0:00:38]} 47. Nf5 {[%clk 0:00:08]}  Bf6 {[%clk 0:00:38]} 48. Ng3 {[%clk 0:00:02]}  h4 {[%clk 0:00:38]} 49. Nh5 {[%clk 0:00:02]}  Be5 {[%clk 0:00:38]} 50. Kd2 {[%clk 0:00:02]} 0-1


[Site "https://www.chess.com"]

[Event "Titled Tuesday Blitz February 21 Early 2023"]
[White "Urazayev, Arystanbek"]
[Black "Silva, Pedro Gil Ferreira Da"]
[WhiteFideId "13709810"]
[BlackFideId "1946102"]
[WhiteElo "2460"]
[BlackElo "2227"]
[Result "1-0"]
[Round "05"]
[TimeControl "180+2"]
[Date "2023.02.21"]
[WhiteClock "0:01:27"]
[BlackClock "0:00:47"]

1. d4 {[%clk 0:03:00]}  Nf6 {[%clk 0:03:00]} 2. c4 {[%clk 0:03:01]}  g6 {[%clk 0:03:00]} 3. Nc3 {[%clk 0:03:01]}  Bg7 {[%clk 0:03:01]} 4. e4 {[%clk 0:03:01]}  O-O {[%clk 0:03:01]} 5. Nf3 {[%clk 0:03:02]}  d6 {[%clk 0:03:01]} 6. Be2 {[%clk 0:03:02]}  e5 {[%clk 0:03:02]} 7. O-O {[%clk 0:03:02]}  exd4 {[%clk 0:03:00]} 8. Nxd4 {[%clk 0:03:03]}  Re8 {[%clk 0:03:01]} 9. f3 {[%clk 0:03:04]}  Nc6 {[%clk 0:03:01]} 10. Be3 {[%clk 0:03:02]}  Bd7 {[%clk 0:03:01]} 11. Qd2 {[%clk 0:03:02]}  Nxd4 {[%clk 0:02:55]} 12. Bxd4 {[%clk 0:03:03]}  Bc6 {[%clk 0:02:56]} 13. b4 {[%clk 0:02:53]}  a5 {[%clk 0:02:54]} 14. b5 {[%clk 0:02:52]}  Bd7 {[%clk 0:02:54]} 15. Rfe1 {[%clk 0:02:49]}  a4 {[%clk 0:02:41]} 16. Rad1 {[%clk 0:02:49]}  Be6 {[%clk 0:02:31]} 17. Bf1 {[%clk 0:02:48]}  Nd7 {[%clk 0:02:30]} 18. Bxg7 {[%clk 0:02:33]}  Kxg7 {[%clk 0:02:31]} 19. f4 {[%clk 0:02:32]}  Qf6 {[%clk 0:02:17]} 20. Nd5 {[%clk 0:02:12]}  Bxd5 {[%clk 0:02:17]} 21. cxd5 {[%clk 0:02:09]}  Nc5 {[%clk 0:02:12]} 22. e5 {[%clk 0:02:01]}  dxe5 {[%clk 0:02:12]} 23. Qc3 {[%clk 0:02:01]}  Qb6 {[%clk 0:02:06]} 24. Kh1 {[%clk 0:01:48]}  Kg8 {[%clk 0:01:51]} 25. fxe5 {[%clk 0:01:48]}  Rad8 {[%clk 0:01:52]} 26. Bc4 {[%clk 0:01:47]}  Re7 {[%clk 0:01:40]} 27. h3 {[%clk 0:01:46]}  Rde8 {[%clk 0:01:40]} 28. e6 {[%clk 0:01:47]}  Qd6 {[%clk 0:01:36]} 29. exf7+ {[%clk 0:01:28]}  Kxf7 {[%clk 0:01:37]} 30. Re6 {[%clk 0:01:28]}  Qd7 {[%clk 0:00:51]} 31. Qf6+ {[%clk 0:01:26]}  Kg8 {[%clk 0:00:50]} 32. Rxe7 {[%clk 0:01:27]}  Rxe7 {[%clk 0:00:47]} 33. d6+ {[%clk 0:01:27]} 1-0


[Site "https://www.chess.com"]

[Event "Titled Tuesday Blitz February 21 Early 2023"]
[White "Kukhmazov, Arsen"]
[Black "Corredor Castellanos, Camilo"]
[WhiteFideId "24108260"]
[BlackFideId "4425871"]
[WhiteElo "2512"]
[BlackElo "1957"]
[Result "1-0"]
[Round "05"]
[TimeControl "180+2"]
[Date "2023.02.21"]
[WhiteClock "0:00:11"]
[BlackClock "0:00:01"]

1. d4 {[%clk 0:02:59]}  g6 {[%clk 0:02:55]} 2. h4 {[%clk 0:02:58]}  h6 {[%clk 0:02:53]} 3. c4 {[%clk 0:02:55]}  Bg7 {[%clk 0:02:52]} 4. Nf3 {[%clk 0:02:56]}  c5 {[%clk 0:02:52]} 5. d5 {[%clk 0:02:49]}  b5 {[%clk 0:02:52]} 6. cxb5 {[%clk 0:02:48]}  a6 {[%clk 0:02:50]} 7. Nc3 {[%clk 0:02:25]}  axb5 {[%clk 0:02:44]} 8. Nxb5 {[%clk 0:02:26]}  Qa5+ {[%clk 0:02:40]} 9. Nc3 {[%clk 0:02:26]}  Bxc3+ {[%clk 0:02:39]} 10. bxc3 {[%clk 0:02:27]}  Qxc3+ {[%clk 0:02:40]} 11. Bd2 {[%clk 0:02:27]}  Qa3 {[%clk 0:02:26]} 12. e4 {[%clk 0:02:24]}  Nf6 {[%clk 0:02:24]} 13. Qc2 {[%clk 0:02:19]}  Ba6 {[%clk 0:02:10]} 14. Bxa6 {[%clk 0:02:15]}  Qxa6 {[%clk 0:02:10]} 15. Ne5 {[%clk 0:02:11]}  d6 {[%clk 0:01:20]} 16. Nc4 {[%clk 0:02:11]}  Nbd7 {[%clk 0:01:20]} 17. O-O {[%clk 0:02:07]}  Qa4 {[%clk 0:01:18]} 18. Qd3 {[%clk 0:02:00]}  Ng4 {[%clk 0:01:13]} 19. f4 {[%clk 0:01:45]}  h5 {[%clk 0:01:06]} 20. e5 {[%clk 0:01:18]}  dxe5 {[%clk 0:01:01]} 21. f5 {[%clk 0:01:19]}  gxf5 {[%clk 0:00:40]} 22. Rxf5 {[%clk 0:00:58]}  f6 {[%clk 0:00:29]} 23. d6 {[%clk 0:00:45]}  e6 {[%clk 0:00:20]} 24. Rxh5 {[%clk 0:00:40]}  Rf8 {[%clk 0:00:14]} 25. Rh7 {[%clk 0:00:36]}  f5 {[%clk 0:00:11]} 26. Bg5 {[%clk 0:00:31]}  Rf7 {[%clk 0:00:09]} 27. Rh8+ {[%clk 0:00:24]}  Rf8 {[%clk 0:00:09]} 28. Rxf8+ {[%clk 0:00:18]}  Kxf8 {[%clk 0:00:10]} 29. Rf1 {[%clk 0:00:19]}  Qxa2 {[%clk 0:00:07]} 30. Rxf5+ {[%clk 0:00:14]}  Ke8 {[%clk 0:00:08]} 31. Rf1 {[%clk 0:00:11]}  Nf8 {[%clk 0:00:01]} 32. d7+ {[%clk 0:00:10]}  Nxd7 {[%clk 0:00:01]} 33. Qg6# {[%clk 0:00:11]} 1-0


[Site "https://www.chess.com"]

[Event "Titled Tuesday Blitz February 21 Early 2023"]
[White "Bortnyk, Mykola"]
[Black "Lauridsen, Jesper Morch"]
[WhiteFideId "14120836"]
[BlackFideId "1401890"]
[WhiteElo "2425"]
[BlackElo "2309"]
[Result "1-0"]
[Round "05"]
[TimeControl "180+2"]
[Date "2023.02.21"]
[WhiteClock "0:01:30"]
[BlackClock "0:00:06"]

1. e4 {[%clk 0:02:57]}  c5 {[%clk 0:02:59]} 2. c3 {[%clk 0:02:56]}  Nf6 {[%clk 0:02:56]} 3. e5 {[%clk 0:02:56]}  Nd5 {[%clk 0:02:56]} 4. Nf3 {[%clk 0:02:57]}  e6 {[%clk 0:02:54]} 5. d4 {[%clk 0:02:57]}  cxd4 {[%clk 0:02:54]} 6. cxd4 {[%clk 0:02:58]}  d6 {[%clk 0:02:54]} 7. Bc4 {[%clk 0:02:59]}  Nc6 {[%clk 0:02:54]} 8. O-O {[%clk 0:02:59]}  Be7 {[%clk 0:02:54]} 9. Qe2 {[%clk 0:03:00]}  O-O {[%clk 0:02:53]} 10. a3 {[%clk 0:03:00]}  Bd7 {[%clk 0:02:49]} 11. Rd1 {[%clk 0:02:58]}  Rc8 {[%clk 0:02:48]} 12. Bd3 {[%clk 0:02:58]}  Na5 {[%clk 0:02:24]} 13. exd6 {[%clk 0:02:46]}  Bxd6 {[%clk 0:02:09]} 14. Nc3 {[%clk 0:02:27]}  Nxc3 {[%clk 0:01:50]} 15. bxc3 {[%clk 0:02:25]}  Ba4 {[%clk 0:01:28]} 16. Re1 {[%clk 0:02:15]}  Nb3 {[%clk 0:01:24]} 17. Bxh7+ {[%clk 0:02:10]}  Kxh7 {[%clk 0:01:21]} 18. Ng5+ {[%clk 0:02:10]}  Kg6 {[%clk 0:01:20]} 19. Qg4 {[%clk 0:01:56]}  f5 {[%clk 0:01:15]} 20. Qh4 {[%clk 0:01:37]}  Nxc1 {[%clk 0:01:11]} 21. Rxe6+ {[%clk 0:01:36]}  Rf6 {[%clk 0:01:08]} 22. Qh7+ {[%clk 0:01:36]}  Kxg5 {[%clk 0:01:05]} 23. Qxg7+ {[%clk 0:01:36]}  Kh5 {[%clk 0:00:46]} 24. Rxf6 {[%clk 0:01:29]}  Ne2+ {[%clk 0:00:24]} 25. Kh1 {[%clk 0:01:29]}  Qxf6 {[%clk 0:00:06]} 26. Qxf6 {[%clk 0:01:30]} 1-0


[Site "https://www.chess.com"]

[Event "Titled Tuesday Blitz February 21 Early 2023"]
[White "Navara, David"]
[Black "Sharapov, Evgeny"]
[WhiteFideId "309095"]
[BlackFideId "14103133"]
[WhiteElo "2678"]
[BlackElo "2375"]
[Result "1-0"]
[Round "05"]
[TimeControl "180+2"]
[Date "2023.02.21"]
[WhiteClock "0:00:09"]
[BlackClock "0:00:55"]

1. Nf3 {[%clk 0:03:00]}  c5 {[%clk 0:02:59]} 2. e4 {[%clk 0:03:00]}  d6 {[%clk 0:02:59]} 3. d4 {[%clk 0:03:01]}  cxd4 {[%clk 0:02:59]} 4. Nxd4 {[%clk 0:03:02]}  Nf6 {[%clk 0:02:59]} 5. Nc3 {[%clk 0:03:02]}  Nc6 {[%clk 0:02:59]} 6. Bg5 {[%clk 0:03:02]}  e6 {[%clk 0:02:59]} 7. Qd2 {[%clk 0:03:02]}  Be7 {[%clk 0:02:59]} 8. O-O-O {[%clk 0:03:01]}  O-O {[%clk 0:02:59]} 9. f4 {[%clk 0:03:01]}  Nxd4 {[%clk 0:02:59]} 10. Qxd4 {[%clk 0:03:02]}  Qa5 {[%clk 0:02:59]} 11. h4 {[%clk 0:02:59]}  Rd8 {[%clk 0:02:56]} 12. Qe3 {[%clk 0:02:55]}  Bd7 {[%clk 0:02:40]} 13. Be2 {[%clk 0:02:42]}  Qc5 {[%clk 0:02:13]} 14. Qxc5 {[%clk 0:02:37]}  dxc5 {[%clk 0:02:13]} 15. e5 {[%clk 0:02:37]}  Nd5 {[%clk 0:02:11]} 16. Nxd5 {[%clk 0:02:37]}  Bxg5 {[%clk 0:02:10]} 17. hxg5 {[%clk 0:02:37]}  exd5 {[%clk 0:02:10]} 18. Rxd5 {[%clk 0:02:38]}  Bc6 {[%clk 0:02:10]} 19. Rxc5 {[%clk 0:01:57]}  Bxg2 {[%clk 0:02:09]} 20. Rh2 {[%clk 0:01:53]}  Bc6 {[%clk 0:02:07]} 21. Bd3 {[%clk 0:01:31]}  g6 {[%clk 0:02:07]} 22. f5 {[%clk 0:01:29]}  Rd4 {[%clk 0:02:01]} 23. e6 {[%clk 0:01:22]}  fxe6 {[%clk 0:01:58]} 24. fxg6 {[%clk 0:01:18]}  hxg6 {[%clk 0:01:57]} 25. Bxg6 {[%clk 0:01:05]}  Kg7 {[%clk 0:01:57]} 26. Bd3 {[%clk 0:01:04]}  Rh8 {[%clk 0:01:55]} 27. Rxh8 {[%clk 0:01:04]}  Kxh8 {[%clk 0:01:55]} 28. Kd2 {[%clk 0:00:55]}  Kg7 {[%clk 0:01:54]} 29. Re5 {[%clk 0:00:54]}  Kf7 {[%clk 0:01:51]} 30. c4 {[%clk 0:00:46]}  Rg4 {[%clk 0:01:41]} 31. Kc3 {[%clk 0:00:36]}  Ke7 {[%clk 0:01:34]} 32. c5 {[%clk 0:00:23]}  Bd5 {[%clk 0:01:32]} 33. a3 {[%clk 0:00:22]}  Rg3 {[%clk 0:01:31]} 34. b4 {[%clk 0:00:17]}  a6 {[%clk 0:01:31]} 35. a4 {[%clk 0:00:15]}  Kd7 {[%clk 0:01:27]} 36. b5 {[%clk 0:00:15]}  axb5 {[%clk 0:01:27]} 37. axb5 {[%clk 0:00:16]}  Kc7 {[%clk 0:01:27]} 38. g6 {[%clk 0:00:14]}  b6 {[%clk 0:01:21]} 39. c6 {[%clk 0:00:11]}  Kd6 {[%clk 0:01:21]} 40. Re1 {[%clk 0:00:07]}  e5 {[%clk 0:01:21]} 41. Kd2 {[%clk 0:00:08]}  e4 {[%clk 0:01:12]} 42. Bxe4 {[%clk 0:00:08]}  Bxe4 {[%clk 0:01:13]} 43. Rxe4 {[%clk 0:00:09]}  Rxg6 {[%clk 0:01:12]} 44. Rd4+ {[%clk 0:00:08]}  Kc7 {[%clk 0:01:00]} 45. Rd7+ {[%clk 0:00:08]}  Kc8 {[%clk 0:01:00]} 46. Rb7 {[%clk 0:00:09]}  Rd6+ {[%clk 0:00:54]} 47. Kc3 {[%clk 0:00:09]}  Rd5 {[%clk 0:00:54]} 48. Rxb6 {[%clk 0:00:09]}  Rc5+ {[%clk 0:00:54]} 49. Kb4 {[%clk 0:00:09]}  Rc1 {[%clk 0:00:55]} 50. Rb7 {[%clk 0:00:09]}  Rb1+ {[%clk 0:00:55]} 51. Kc5 {[%clk 0:00:08]}  Rc1+ {[%clk 0:00:55]} 52. Kb6 {[%clk 0:00:09]} 1-0


[Site "https://www.chess.com"]